bitfinex/quotes_SOLUSD_20250305
["timestamp","ask_amount","ask_price","bid_price","bid_amount"]
[1741170406705,0.03,148.54,148.39,16.8469]
[1741170406905,0.03,148.54,148.44,3.84884238]
[1741170407337,0.17216157,148.54,148.44,3.84884238]
[1741170407508,18.82181043,148.54,148.44,3.84884238]
[1741170407707,18.933972,148.53,148.44,3.84884238]
[1741170408241,0.28432314,148.53,148.44,3.84884238]
[1741170408546,18.67964886,148.54,148.4,53.83992431]
[1741170408719,0.28432314,148.53,148.4,0.033]
[1741170409129,0.03,148.54,148.4,0.033]
[1741170409335,0.28432314,148.53,148.4,0.033]
[1741170409541,20.0,148.52,148.4,0.033]
[1741170410036,0.03,148.54,148.43,20.0]
[1741170410225,0.03,148.54,148.41,53.80692431]
[1741170410436,0.03,148.54,148.42,73.80692431]
[1741170410742,0.03,148.54,148.43,53.80692431]
[1741170410935,0.03,148.54,148.45,53.80692431]
[1741170411140,0.03,148.54,148.46,53.80692431]
[1741170411354,0.03,148.54,148.48,73.80692431]
[1741170411660,8.7366,148.65,148.48,73.80692431]
[1741170411661,3.71294438,148.78,148.53,53.80692431]
[1741170411818,1.6724728,148.82,148.75,20.0]
[1741170412024,33.64817637,148.95,148.83,24.22000062]
[1741170412319,68.52068641,148.97,148.85,53.80692431]
[1741170412518,64.16388641,148.97,148.86,53.80692431]
[1741170412984,13.89869345,148.87,148.86,53.80692431]
[1741170413255,64.16388641,148.97,148.86,312.0]
[1741170413625,64.16388641,148.97,148.86,365.80692431]
[1741170413936,64.16388641,148.97,148.86,53.80692431]
[1741170414338,64.16388641,148.97,148.88,53.80692431]
[1741170414833,64.16388641,148.97,148.9,53.80692431]
[1741170415243,64.16388641,148.97,148.91,53.80692431]
[1741170415626,64.16388641,148.97,148.94,53.80692431]
[1741170415827,6.7096,149.04,148.95,53.80692431]
[1741170416052,6.709,149.06,148.86,1.41009774]
[1741170416228,6.709,149.06,148.91,53.80692431]
[1741170416430,6.709,149.06,148.9,53.80692431]
[1741170416627,20.0,149.03,148.93,10.37930844]
[1741170416847,6.709,149.06,148.93,10.37930844]
[1741170417055,20.0,149.03,148.93,10.37930844]
[1741170417248,6.7105,149.02,148.93,10.37930844]
[1741170417865,6.7087,149.06,148.95,53.80692431]
[1741170418371,20.0,149.03,148.93,10.37930844]
[1741170419446,3.32405327,149.03,148.95,10.37930844]
[1741170419673,4.5698,149.08,148.95,10.37930844]
[1741170419841,3.35970041,149.09,148.94,10.37930844]
[1741170420043,10.7887728,149.11,148.94,10.37930844]
[1741170420345,10.7887728,149.11,148.95,10.37930844]
[1741170420875,33.5379,149.09,148.95,10.37930844]
[1741170421379,33.5379,149.09,148.92,53.80692431]
[1741170421539,20.0,149.06,148.91,53.80692431]
[1741170421739,20.0,149.02,148.9,10.37930844]
[1741170421969,18.64964886,149.01,148.9,10.37930844]
[1741170422273,0.28432314,149.0,148.9,10.37930844]
[1741170422476,18.64964886,149.01,148.9,64.18623275]
[1741170422642,0.28432314,149.01,148.9,10.37930844]
[1741170422838,18.933972,148.99,148.89,41.89370078]
[1741170423037,20.0,148.96,148.89,41.89370078]
[1741170423263,0.28432314,148.94,148.89,41.89370078]
[1741170423469,18.64964886,148.92,148.89,41.89370078]
[1741170423678,0.28432314,148.91,148.83,10.37930844]
[1741170424078,18.64964886,148.84,148.83,10.37930844]
[1741170424304,0.28432314,148.88,148.83,10.37930844]
[1741170424893,0.28432314,148.88,148.8,20.83992446]
[1741170425484,18.79181043,148.86,148.75,53.80692431]
[1741170425666,0.14216157,148.85,148.74,53.80692431]
[1741170425904,0.14216157,148.85,148.7,53.80692431]
[1741170426200,0.14216157,148.85,148.69,53.80692431]
[1741170426376,0.14216157,148.85,148.64,8.7488]
[1741170426576,0.14216157,148.85,148.69,53.80692431]
[1741170426788,0.14216157,148.82,148.69,53.80692431]
[1741170427097,33.58768656,148.82,148.68,53.80692431]
[1741170427275,0.14216157,148.8,148.68,53.80692431]
[1741170427478,0.14216157,148.8,148.61,55.21905657]
[1741170427479,18.79181043,148.78,148.67,53.80692431]
[1741170427682,18.64964886,148.78,148.68,53.80692431]
[1741170428009,18.64964886,148.78,148.66,53.80692431]
[1741170428493,18.64964886,148.78,148.69,53.80692431]
[1741170428799,18.64964886,148.78,148.68,53.80692431]
[1741170429008,23.523,148.79,148.7,53.80692431]
[1741170429196,6.7208,148.79,148.71,53.80692431]
[1741170429489,18.64964886,148.82,148.71,53.80692431]
[1741170429695,18.64964886,148.82,148.69,53.80692431]
[1741170429900,0.14216157,148.81,148.66,6.7267]
[1741170430068,0.14216157,148.81,148.7,53.80692431]
[1741170430469,18.64964886,148.78,148.63,6.7281]
[1741170430690,18.64964886,148.78,148.67,53.80692431]
[1741170430895,0.28432314,148.81,148.63,6.7281]
[1741170430896,0.28432314,148.86,148.69,53.80692431]
[1741170431108,18.933972,148.86,148.66,20.0]
[1741170431278,18.933972,148.82,148.68,53.80692431]
[1741170431482,0.14216157,148.8,148.67,53.80692431]
[1741170431690,0.14216157,148.79,148.66,53.80692431]
[1741170432391,0.14216157,148.79,148.65,53.80692431]
[1741170432700,0.14216157,148.79,148.63,53.80692431]
[1741170432909,0.14216157,148.79,148.62,53.80692431]
[1741170433081,0.14216157,148.79,148.61,53.80692431]
[1741170433278,0.14216157,148.79,148.6,53.80692431]
[1741170433602,18.933972,148.77,148.6,53.80692431]
[1741170433994,18.933972,148.77,148.61,53.80692431]
[1741170434198,18.933972,148.77,148.55,6.7317]
[1741170434883,18.933972,148.77,148.52,6.733]
[1741170434884,18.933972,148.75,148.52,6.733]
[1741170435079,18.933972,148.75,148.58,53.80692431]
[1741170435400,18.933972,148.75,148.52,335.5657]
[1741170435601,0.28432314,148.73,148.58,53.80692431]
[1741170435912,0.28432314,148.73,148.66,0.033]
[1741170435913,18.64964886,148.69,148.66,0.033]
[1741170436280,18.64964886,148.69,148.59,53.80692431]
[1741170436498,18.64964886,148.69,148.58,53.80692431]
[1741170436694,0.28432314,148.72,148.55,20.0]
[1741170436878,20.0,148.71,148.58,53.80692431]
[1741170437184,0.28432314,148.69,148.56,53.80692431]
[1741170437501,23.5404,148.68,148.51,6.7665]
[1741170437697,23.5404,148.68,148.58,53.80692431]
[1741170437901,20.0,148.64,148.55,53.80692431]
[1741170438200,20.0,148.64,148.53,53.80692431]
[1741170438494,0.28432314,148.67,148.55,53.80692431]
[1741170438882,0.28432314,148.64,148.51,0.033]
[1741170439086,18.933972,148.63,148.51,0.033]
[1741170439283,18.79181043,148.63,148.51,53.83992431]
[1741170439479,23.5499,148.62,148.52,53.80692431]
[1741170439680,18.933972,148.61,148.51,0.033]
[1741170440602,23.251172,148.61,148.51,0.033]
[1741170441403,23.553,148.6,148.51,0.033]
[1741170441602,0.28432314,148.59,148.51,0.033]
[1741170441788,23.553,148.6,148.51,0.033]
[1741170442192,0.28432314,148.58,148.51,0.033]
[1741170442710,0.28432314,148.58,148.43,53.80692431]
[1741170443210,0.28432314,148.58,148.44,53.80692431]
[1741170443704,18.64964886,148.55,148.44,53.80692431]
[1741170444007,57.2119,148.57,148.45,53.80692431]
[1741170444314,20.0,148.54,148.44,53.80692431]
[1741170444489,18.64964886,148.53,148.4,0.033]
[1741170444687,20.0,148.54,148.4,0.033]
[1741170444893,18.64964886,148.53,148.42,53.80692431]
[1741170445211,18.64964886,148.55,148.45,53.80692431]
[1741170445713,23.5625,148.54,148.4,318.7714]
[1741170446005,18.933972,148.53,148.42,53.80692431]
[1741170446191,18.64964886,148.53,148.43,53.80692431]
[1741170446386,57.2234,148.54,148.44,53.80692431]
[1741170446599,57.2234,148.54,148.45,53.80692431]
[1741170446908,57.2234,148.54,148.43,53.80692431]
[1741170447089,57.2234,148.54,148.44,53.80692431]
[1741170447294,57.2234,148.54,148.46,53.80692431]
[1741170447498,33.6609,148.54,148.46,53.80692431]
[1741170447707,57.2119,148.57,148.49,53.80692431]
[1741170448012,57.2119,148.57,148.5,53.80692431]
[1741170448013,23.5578,148.57,148.5,53.80692431]
[1741170448190,23.5578,148.57,148.43,1.41374853]
[1741170448391,23.5578,148.57,148.49,53.80692431]
[1741170448808,23.5578,148.57,148.5,53.80692431]
[1741170449007,6.7308,148.57,148.51,53.80692431]
[1741170449192,6.7308,148.57,148.52,53.80692431]
[1741170449389,6.7294,148.6,148.48,1.69780571]
[1741170449593,23.5467,148.64,148.53,53.80692431]
[1741170450095,23.5467,148.64,148.56,53.80692431]
[1741170450426,23.5467,148.64,148.57,53.80692431]
[1741170450627,6.7276,148.64,148.59,53.80692431]
[1741170450792,16.8163,148.67,148.6,53.80692431]
[1741170450990,23.5367,148.71,148.62,53.80692431]
[1741170451205,23.5367,148.71,148.6,53.80692431]
[1741170451711,23.5367,148.71,148.62,53.80692431]
[1741170452210,23.5367,148.71,148.61,53.80692431]
[1741170452710,23.5367,148.71,148.61,312.0]
[1741170453011,23.5367,148.71,148.62,53.80692431]
[1741170453318,6.7244,148.71,148.65,53.80692431]
[1741170453624,0.03,148.73,148.65,53.80692431]
[1741170453807,0.03,148.73,148.68,53.80692431]
[1741170453991,0.03,148.73,148.69,53.80692431]
[1741170454194,0.03,148.73,148.7,53.80692431]
[1741170454404,0.03,148.73,148.66,53.80692431]
[1741170454602,0.03,148.73,148.62,1.41206545]
[1741170454901,0.03,148.73,148.61,9.5413]
[1741170455120,0.03,148.73,148.64,20.0]
[1741170455824,0.03,148.73,148.62,53.80692431]
[1741170456015,0.03,148.73,148.6,0.28432314]
[1741170456211,0.03,148.73,148.59,1.41219761]
[1741170456417,20.03,148.73,148.6,53.80692431]
[1741170456617,20.0,148.71,148.6,53.80692431]
[1741170456800,20.0,148.71,148.6,365.80692431]
[1741170457125,20.0,148.71,148.59,53.80692431]
[1741170457321,0.03,148.73,148.63,53.80692431]
[1741170457625,0.03,148.73,148.62,53.80692431]
[1741170457810,0.03,148.73,148.59,1.69657605]
[1741170457811,20.03,148.73,148.6,53.80692431]
[1741170458028,20.03,148.73,148.55,1.41235697]
[1741170458029,18.64964886,148.72,148.58,53.80692431]
[1741170458224,18.64964886,148.72,148.55,1.41235697]
[1741170458520,18.64964886,148.72,148.59,53.80692431]
[1741170458695,18.64964886,148.72,148.56,0.28432314]
[1741170458895,18.64964886,148.72,148.59,53.80692431]
[1741170459099,18.64964886,148.72,148.57,53.80692431]
[1741170459311,0.28432314,148.71,148.55,53.80692431]
[1741170459725,18.64964886,148.69,148.55,53.80692431]
[1741170459921,57.1619,148.7,148.54,1.41298788]
[1741170460220,57.1619,148.7,148.57,53.80692431]
[1741170460608,18.64964886,148.69,148.57,53.80692431]
[1741170461010,57.1619,148.7,148.58,53.80692431]
[1741170461203,90.7866,148.7,148.55,312.0]
[1741170461409,90.7866,148.7,148.57,53.80692431]
[1741170461906,84.0617,148.7,148.57,53.80692431]
[1741170462110,18.64964886,148.69,148.55,312.0]
[1741170462308,18.64964886,148.69,148.55,53.80692431]
[1741170463004,18.64964886,148.69,148.57,53.80692431]
[1741170463233,20.0,148.67,148.57,53.80692431]
[1741170463396,84.0617,148.7,148.53,89.0325]
[1741170463397,84.0617,148.7,148.56,20.0]
[1741170463601,18.64964886,148.69,148.57,53.80692431]
[1741170463801,57.1696,148.68,148.56,53.80692431]
[1741170464830,57.1696,148.68,148.55,53.80692431]
[1741170465426,57.1696,148.68,148.55,365.80692431]
[1741170465605,57.1696,148.68,148.56,53.80692431]
[1741170466405,57.1696,148.68,148.58,53.80692431]
[1741170466821,18.64964886,148.67,148.54,53.80692431]
[1741170467210,18.64964886,148.67,148.53,82.3]
[1741170467412,18.64964886,148.67,148.52,53.80692431]
[1741170467609,0.28432314,148.66,148.51,53.80692431]
[1741170467810,18.64964886,148.67,148.52,53.80692431]
[1741170468110,18.64964886,148.64,148.52,53.80692431]
[1741170468322,18.64964886,148.64,148.51,53.80692431]
[1741170468625,18.64964886,148.64,148.52,53.80692431]
[1741170468935,18.64964886,148.64,148.51,53.80692431]
[1741170469622,18.64964886,148.6,148.52,4.77361703]
[1741170470028,16.8248,148.59,148.52,4.77361703]
[1741170470623,16.8248,148.59,148.5,0.033]
[1741170471506,16.8248,148.59,148.5,33.14148149]
[1741170471707,16.8248,148.59,148.5,0.033]
[1741170472227,18.64964886,148.58,148.5,0.033]
[1741170473528,30.1222,148.59,148.5,0.033]
[1741170474031,73.92787473,148.59,148.5,0.033]
[1741170476117,70.5017,148.59,148.5,0.033]
[1741170476518,18.933972,148.58,148.5,0.033]
[1741170477023,18.64964886,148.58,148.5,0.033]
[1741170477645,57.2119,148.57,148.5,0.033]
[1741170478015,23.5578,148.57,148.5,0.033]
[1741170478421,18.64964886,148.56,148.5,0.033]
[1741170479151,57.2119,148.57,148.5,0.033]
[1741170480038,18.933972,148.56,148.5,0.033]
[1741170480919,20.0,148.53,148.43,0.033]
[1741170481334,20.0,148.53,148.43,33.14148149]
[1741170481513,84.1352,148.57,148.47,33.10848149]
[1741170481715,18.64964886,148.56,148.43,6.77]
[1741170481919,18.64964886,148.56,148.43,0.033]
[1741170483259,23.561,148.55,148.43,0.033]
[1741170483543,23.561,148.55,148.44,33.10848149]
[1741170483745,57.2197,148.55,148.43,33.14148149]
[1741170483948,10.30808088,148.68,148.48,33.10848149]
[1741170484158,7.47403462,148.68,148.63,33.10848149]
[1741170484390,7.47403462,148.68,148.56,1.41248967]
[1741170484566,7.47403462,148.68,148.5,33.10848149]
[1741170484567,7.47403462,148.68,148.58,33.10848149]
[1741170484769,7.47403462,148.68,148.56,33.10848149]
[1741170485150,14.19993462,148.68,148.54,33.10848149]
[1741170485477,14.19993462,148.68,148.5,17.62955809]
[1741170485663,14.19993462,148.68,148.53,33.10848149]
[1741170485841,14.19993462,148.68,148.55,33.10848149]
[1741170486183,14.19993462,148.68,148.57,33.10848149]
[1741170486382,14.19993462,148.68,148.5,17.62955809]
[1741170486675,14.19993462,148.68,148.53,33.10848149]
[1741170486873,31.01453462,148.68,148.5,4.77883979]
[1741170487041,31.01453462,148.68,148.52,33.10848149]
[1741170487245,23.5405,148.68,148.52,33.10848149]
[1741170487442,23.5405,148.68,148.53,33.10848149]
[1741170487662,23.5405,148.68,148.55,33.10848149]
[1741170487841,6.7259,148.68,148.56,33.10848149]
[1741170488094,6.7259,148.68,148.58,33.10848149]
[1741170488283,6.7259,148.68,148.59,33.10848149]
[1741170488457,6.7253,148.7,148.6,33.10848149]
[1741170488781,13.3679,148.72,148.61,33.10848149]
[1741170488957,20.0923,148.72,148.5,55.0416888]
[1741170489159,20.0923,148.72,148.63,33.10848149]
[1741170489343,4.3847,148.72,148.66,33.10848149]
[1741170489549,0.03,148.73,148.67,33.10848149]
[1741170489956,0.03,148.68,148.67,33.10848149]
[1741170490573,0.03,148.68,148.67,33.02574254]
[1741170491875,0.03,148.68,148.67,53.65952089]
[1741170492792,0.03,148.68,148.65,53.65952089]
[1741170493150,0.03,148.68,148.66,53.65952089]
[1741170493561,0.03,148.68,148.67,53.65952089]
[1741170494077,0.03,148.68,148.63,53.65952089]
[1741170494283,0.03,148.68,148.61,53.65952089]
[1741170495283,20.03,148.68,148.6,53.65952089]
[1741170495690,20.03,148.68,148.56,82.3]
[1741170495896,20.03,148.68,148.61,53.65952089]
[1741170496097,20.03,148.68,148.59,53.65952089]
[1741170496272,20.03,148.68,148.56,82.3]
[1741170496477,20.03,148.68,148.62,53.65952089]
[1741170496708,20.03,148.68,148.58,53.65952089]
[1741170496709,18.64964886,148.67,148.58,53.65952089]
[1741170496996,18.64964886,148.67,148.59,53.65952089]
[1741170497208,6.7267,148.66,148.59,53.65952089]
[1741170498103,6.7267,148.66,148.6,53.65952089]
[1741170498405,6.7267,148.66,148.59,53.65952089]
[1741170498607,6.7267,148.66,148.6,53.65952089]
[1741170498778,6.7267,148.66,148.59,53.65952089]
[1741170498981,0.03,148.68,148.63,53.65952089]
[1741170499199,0.03,148.68,148.57,0.28432314]
[1741170499412,0.03,148.68,148.57,1.69691459]
[1741170499620,0.03,148.68,148.62,0.28432314]
[1741170500217,0.03,148.68,148.67,53.65952089]
[1741170500391,0.03,148.68,148.67,53.94384403]
[1741170500942,20.4485502,148.82,148.67,20.06126606]
[1741170501220,6.7199,148.81,148.68,0.14216157]
[1741170501398,23.5198,148.81,148.72,53.65952089]
[1741170501917,20.0,148.77,148.63,0.14216157]
[1741170502101,20.03,148.73,148.62,8.58121871]
[1741170502305,18.64964886,148.72,148.62,8.58121871]
[1741170502512,20.0,148.69,148.62,8.58121871]
[1741170502829,0.03,148.73,148.62,8.58121871]
[1741170503151,18.933972,148.72,148.62,8.58121871]
[1741170503329,20.0,148.67,148.62,3.81282609]
[1741170503628,20.0,148.67,148.57,53.65952089]
[1741170503629,23.5356,148.71,148.61,53.65952089]
[1741170503794,23.5356,148.71,148.62,53.65952089]
[1741170503997,6.7244,148.71,148.64,53.65952089]
[1741170504307,6.7241,148.72,148.65,53.65952089]
[1741170504506,6.7241,148.72,148.66,53.65952089]
[1741170504700,6.7539,148.73,148.67,53.65952089]
[1741170504904,6.7539,148.73,148.66,53.65952089]
[1741170505313,0.03,148.73,148.65,53.65952089]
[1741170505619,0.03,148.73,148.56,0.28432314]
[1741170505794,0.03,148.73,148.64,53.65952089]
[1741170505995,0.03,148.73,148.65,53.65952089]
[1741170506203,0.03,148.73,148.68,53.65952089]
[1741170506401,0.03,148.73,148.65,20.0]
[1741170507036,0.03,148.73,148.69,53.65952089]
[1741170507217,0.03,148.73,148.61,53.65952089]
[1741170507432,0.03,148.73,148.53,2.0]
[1741170507433,0.03,148.73,148.62,53.65952089]
[1741170508121,0.03,148.73,148.61,53.65952089]
[1741170508536,0.03,148.73,148.59,53.65952089]
[1741170509446,20.0,148.69,148.59,53.65952089]
[1741170509841,20.0,148.69,148.55,82.3]
[1741170510147,20.0,148.69,148.58,53.65952089]
[1741170510345,18.64964886,148.68,148.56,53.65952089]
[1741170510674,18.64964886,148.64,148.53,53.65952089]
[1741170510834,18.64964886,148.64,148.52,53.65952089]
[1741170511024,20.0,148.61,148.51,53.65952089]
[1741170511429,23.553,148.6,148.5,0.033]
[1741170511626,23.553,148.6,148.51,53.65952089]
[1741170512327,23.553,148.6,148.53,53.65952089]
[1741170512731,6.7294,148.6,148.53,53.65952089]
[1741170512943,6.7294,148.6,148.54,53.65952089]
[1741170513152,18.64964886,148.59,148.51,53.65952089]
[1741170513360,23.553,148.6,148.52,53.65952089]
[1741170513560,6.729,148.61,148.5,0.033]
[1741170513725,6.729,148.61,148.56,53.65952089]
[1741170514053,6.7272,148.65,148.58,53.65952089]
[1741170514262,6.7272,148.65,148.59,53.65952089]
[1741170514473,6.7272,148.65,148.6,53.65952089]
[1741170514687,6.7272,148.65,148.59,53.65952089]
[1741170515355,0.03,148.68,148.58,53.65952089]
[1741170515552,23.5704,148.68,148.58,53.65952089]
[1741170516178,23.0515793,148.68,148.58,53.65952089]
[1741170516381,23.0515793,148.68,148.59,53.65952089]
[1741170516949,6.2369793,148.68,148.6,53.65952089]
[1741170517150,6.7249,148.7,148.62,53.65952089]
[1741170517362,16.8084,148.74,148.63,53.65952089]
[1741170517572,16.8084,148.74,148.64,53.65952089]
[1741170518078,16.8084,148.74,148.63,53.65952089]
[1741170518382,20.2012247,148.74,148.64,53.65952089]
[1741170518680,26.9243247,148.74,148.64,53.65952089]
[1741170518892,23.5315,148.74,148.66,53.65952089]
[1741170519091,13.6174,148.76,148.66,53.65952089]
[1741170519959,13.6174,148.76,148.68,53.65952089]
[1741170520269,13.6174,148.76,148.63,1.69643508]
[1741170520460,13.6174,148.76,148.65,0.14216157]
[1741170520784,20.3396,148.76,148.65,53.65952089]
[1741170520986,20.3396,148.76,148.64,53.65952089]
[1741170521280,20.0,148.72,148.61,53.65952089]
[1741170521494,18.64964886,148.71,148.61,53.65952089]
[1741170521656,18.64964886,148.71,148.6,53.65952089]
[1741170521859,0.28432314,148.71,148.56,53.65952089]
[1741170522457,6.7244,148.71,148.58,53.65952089]
[1741170522885,20.0,148.67,148.56,53.65952089]
[1741170523199,18.64964886,148.66,148.55,53.65952089]
[1741170523562,18.64964886,148.66,148.58,53.65952089]
[1741170523897,23.5356,148.71,148.52,6.733]
[1741170523898,6.724,148.72,148.62,53.65952089]
[1741170524252,0.03,148.73,148.64,53.65952089]
[1741170524492,0.03,148.73,148.62,0.14216157]
[1741170524679,0.03,148.73,148.67,53.65952089]
[1741170524888,0.03,148.73,148.62,0.14216157]
[1741170525088,0.03,148.73,148.62,0.28432314]
[1741170525295,0.03,148.73,148.63,53.65952089]
[1741170525602,0.03,148.73,148.61,6.729]
[1741170525812,0.03,148.73,148.64,53.65952089]
[1741170526215,0.03,148.73,148.62,1.69654946]
[1741170526511,0.03,148.73,148.66,53.65952089]
[1741170527013,0.03,148.73,148.63,53.65952089]
[1741170527684,0.03,148.73,148.61,0.14216157]
[1741170527916,20.03,148.73,148.61,1.41213702]
[1741170528080,20.03,148.73,148.59,34.44514906]
[1741170528081,20.03,148.73,148.62,53.65952089]
[1741170528481,26.7539,148.73,148.63,6.7281]
[1741170528687,0.03,148.73,148.66,53.65952089]
[1741170529715,0.03,148.73,148.65,53.65952089]
[1741170530134,16.8039,148.78,148.65,53.65952089]
[1741170530135,6.7477,148.86,148.67,0.28432314]
[1741170530320,6.7477,148.86,148.76,53.65952089]
[1741170530631,18.67964886,148.86,148.72,23.5338]
[1741170530833,0.03,148.86,148.82,53.65952089]
[1741170531034,0.03,148.86,148.85,53.65952089]
[1741170531397,0.03,148.86,148.78,38.86217186]
[1741170531398,0.03,148.86,148.83,53.65952089]
[1741170531601,0.03,148.86,148.82,53.65952089]
[1741170532917,0.03,148.86,148.8,6.7203]
[1741170533112,0.03,148.86,148.79,26.86296157]
[1741170533317,0.03,148.86,148.8,53.65952089]
[1741170533649,0.03,148.86,148.75,53.65952089]
[1741170534329,0.03,148.86,148.76,20.0]
[1741170534504,0.03,148.86,148.74,0.14216157]
[1741170534703,0.03,148.86,148.75,53.65952089]
[1741170535312,0.03,148.86,148.77,53.65952089]
[1741170535721,20.0,148.82,148.61,82.3]
[1741170535909,20.0,148.82,148.69,53.65952089]
[1741170536110,18.64964886,148.81,148.7,53.65952089]
[1741170536314,9.5991,148.85,148.72,53.65952089]
[1741170536638,6.719,148.83,148.69,6.08061134]
[1741170536816,6.719,148.83,148.71,53.65952089]
[1741170537200,6.719,148.83,148.72,53.65952089]
[1741170537426,18.64964886,148.82,148.72,53.65952089]
[1741170537705,23.5166,148.83,148.72,53.65952089]
[1741170537924,23.5166,148.83,148.67,0.28432314]
[1741170538124,18.64964886,148.82,148.67,7.01012314]
[1741170538315,23.5166,148.83,148.73,53.65952089]
[1741170538316,6.719,148.83,148.73,53.65952089]
[1741170538631,0.03,148.84,148.73,53.65952089]
[1741170538834,42.19474886,148.84,148.73,53.65952089]
[1741170539216,42.19474886,148.84,148.67,1.41159099]
[1741170539417,42.19474886,148.84,148.71,53.65952089]
[1741170539614,42.19474886,148.84,148.72,53.65952089]
[1741170539811,42.19474886,148.84,148.69,53.65952089]
[1741170539812,75.78784886,148.84,148.69,53.65952089]
[1741170540022,0.28432314,148.83,148.68,53.65952089]
[1741170540222,0.28432314,148.83,148.63,0.033]
[1741170540425,0.28432314,148.83,148.67,53.65952089]
[1741170540632,0.28432314,148.83,148.68,53.65952089]
[1741170540914,0.28432314,148.81,148.68,53.65952089]
[1741170541139,0.28432314,148.81,148.63,0.033]
[1741170541343,18.933972,148.81,148.67,53.65952089]
[1741170541805,18.933972,148.81,148.66,53.65952089]
[1741170542000,18.933972,148.81,148.65,53.65952089]
[1741170542548,18.933972,148.81,148.69,53.65952089]
[1741170542916,23.5214,148.8,148.68,53.65952089]
[1741170543321,18.64964886,148.79,148.66,53.65952089]
[1741170543830,18.64964886,148.79,148.68,53.65952089]
[1741170544149,57.1235,148.8,148.74,53.65952089]
[1741170544150,6.7204,148.8,148.74,53.65952089]
[1741170544304,6.7204,148.8,148.73,53.65952089]
[1741170544860,33.5976,148.82,148.66,0.28432314]
[1741170545033,18.64964886,148.81,148.66,0.28432314]
[1741170545239,18.64964886,148.81,148.68,53.65952089]
[1741170545468,20.0,148.78,148.64,135.95952089]
[1741170545753,20.0,148.78,148.63,53.69252089]
[1741170545955,20.0,148.79,148.64,53.65952089]
[1741170546124,0.28432314,148.78,148.63,0.033]
[1741170546754,0.28432314,148.78,148.63,53.69252089]
[1741170546957,57.135,148.77,148.63,53.69252089]
[1741170547163,57.135,148.77,148.63,0.033]
[1741170547330,57.135,148.77,148.63,53.69252089]
[1741170547529,18.64964886,148.76,148.63,53.69252089]
[1741170547725,18.64964886,148.76,148.63,0.033]
[1741170547931,18.64964886,148.76,148.63,53.69252089]
[1741170548133,18.64964886,148.76,148.64,53.65952089]
[1741170548557,57.135,148.77,148.67,53.65952089]
[1741170548762,57.135,148.77,148.66,53.65952089]
[1741170549067,33.6089,148.77,148.64,53.65952089]
[1741170549268,33.6089,148.77,148.65,53.65952089]
[1741170549935,18.64964886,148.76,148.65,53.65952089]
[1741170550547,33.5976,148.82,148.71,53.65952089]
[1741170551054,18.64964886,148.81,148.69,53.65952089]
[1741170551252,20.0,148.78,148.68,53.65952089]
[1741170551452,20.0,148.78,148.66,53.65952089]
[1741170551666,18.64964886,148.77,148.63,0.033]
[1741170551838,20.0,148.74,148.63,53.69252089]
[1741170552043,20.0,148.74,148.65,53.65952089]
[1741170552247,0.28432314,148.81,148.66,53.65952089]
[1741170552449,38.64964886,148.78,148.66,53.65952089]
[1741170552666,38.64964886,148.78,148.65,53.65952089]
[1741170552853,23.5261,148.77,148.65,53.65952089]
[1741170553060,18.64964886,148.76,148.64,53.65952089]
[1741170553277,18.64964886,148.76,148.65,53.65952089]
[1741170553567,18.64964886,148.76,148.63,0.033]
[1741170553869,18.64964886,148.76,148.63,53.69252089]
[1741170554370,18.64964886,148.76,148.64,53.65952089]
[1741170555371,0.03,148.84,148.75,53.65952089]
[1741170555675,6.7488,148.84,148.72,53.65952089]
[1741170555844,18.64964886,148.83,148.7,53.65952089]
[1741170556047,23.5453,148.84,148.7,53.65952089]
[1741170556263,23.5453,148.84,148.71,53.65952089]
[1741170556477,23.5453,148.84,148.69,20.14216157]
[1741170556790,23.5453,148.84,148.72,53.65952089]
[1741170557150,23.5453,148.84,148.73,53.65952089]
[1741170557653,6.7488,148.84,148.74,53.65952089]
[1741170558271,6.7488,148.84,148.73,53.65952089]
[1741170559161,6.7488,148.84,148.72,53.65952089]
[1741170559566,6.7488,148.84,148.71,6.7243]
[1741170559768,18.64964886,148.83,148.69,53.65952089]
[1741170559952,18.64964886,148.83,148.7,53.65952089]